[Event "Titled Tuesday Blitz December 20 Late 2022"]
[White "TheKnightOfBosnia"]
[Black "Shapiro, Daniel"]
[BlackFideId "2001780"]
[WhiteElo "2439"]
[BlackElo "2330"]
[Result "0-1"]
[Round "07"]
[TimeControl "180+1"]
[Date "2022.12.21"]
[WhiteClock "0:01:30"]
[BlackClock "0:00:58"]

1. e4 {[%clk 0:03:00]}  e5 {[%clk 0:02:09]} 2. Nf3 {[%clk 0:03:00]}  Nc6 {[%clk 0:02:08]} 3. Bb5 {[%clk 0:03:00]}  a6 {[%clk 0:02:07]} 4. Ba4 {[%clk 0:02:59]}  Nf6 {[%clk 0:02:07]} 5. d3 {[%clk 0:02:59]}  b5 {[%clk 0:02:06]} 6. Bb3 {[%clk 0:02:59]}  Bb7 {[%clk 0:02:05]} 7. a3 {[%clk 0:02:57]}  Bd6 {[%clk 0:02:02]} 8. Nc3 {[%clk 0:02:54]}  h6 {[%clk 0:02:01]} 9. h3 {[%clk 0:02:54]}  O-O {[%clk 0:02:01]} 10. O-O {[%clk 0:02:53]}  Na5 {[%clk 0:01:55]} 11. Ba2 {[%clk 0:02:53]}  Re8 {[%clk 0:01:55]} 12. b4 {[%clk 0:02:49]}  Nc6 {[%clk 0:01:53]} 13. Re1 {[%clk 0:02:49]}  Bf8 {[%clk 0:01:53]} 14. Nd5 {[%clk 0:02:43]}  d6 {[%clk 0:01:52]} 15. Be3 {[%clk 0:02:37]}  Nb8 {[%clk 0:01:50]} 16. Nxf6+ {[%clk 0:02:31]}  Qxf6 {[%clk 0:01:49]} 17. c4 {[%clk 0:02:29]}  Nd7 {[%clk 0:01:43]} 18. Rc1 {[%clk 0:02:26]}  c6 {[%clk 0:01:43]} 19. Qe2 {[%clk 0:02:24]}  Rac8 {[%clk 0:01:41]} 20. a4 {[%clk 0:02:20]}  g6 {[%clk 0:01:34]} 21. g3 {[%clk 0:02:17]}  d5 {[%clk 0:01:26]} 22. cxd5 {[%clk 0:02:10]}  Bxb4 {[%clk 0:01:25]} 23. dxc6 {[%clk 0:02:02]}  Rxc6 {[%clk 0:01:15]} 24. Rxc6 {[%clk 0:02:00]}  Bxc6 {[%clk 0:01:13]} 25. axb5 {[%clk 0:02:00]}  Bxb5 {[%clk 0:01:10]} 26. Rb1 {[%clk 0:01:58]}  Qd6 {[%clk 0:01:05]} 27. Rd1 {[%clk 0:01:39]}  Kg7 {[%clk 0:01:01]} 28. Kg2 {[%clk 0:01:36]}  Nc5 {[%clk 0:00:59]} 29. d4 {[%clk 0:01:30]}  Bxe2 {[%clk 0:00:58]} 0-1


[Site "https://www.chess.com"]

[Event "Titled Tuesday Blitz December 20 Late 2022"]
[White "Thiel, Thomas"]
[Black "Rosenberg, Evan S"]
[WhiteFideId "4615964"]
[BlackFideId "2019299"]
[WhiteElo "2239"]
[BlackElo "2407"]
[Result "0-1"]
[Round "07"]
[TimeControl "180+1"]
[Date "2022.12.21"]
[WhiteClock "0:02:06"]
[BlackClock "0:02:00"]

1. e4 {[%clk 0:03:00]}  e5 {[%clk 0:03:00]} 2. Nf3 {[%clk 0:02:59]}  Nc6 {[%clk 0:03:00]} 3. d4 {[%clk 0:02:57]}  exd4 {[%clk 0:03:01]} 4. Nxd4 {[%clk 0:02:57]}  Nf6 {[%clk 0:03:01]} 5. Nxc6 {[%clk 0:02:57]}  bxc6 {[%clk 0:03:02]} 6. e5 {[%clk 0:02:56]}  Qe7 {[%clk 0:03:03]} 7. Qe2 {[%clk 0:02:55]}  Nd5 {[%clk 0:03:04]} 8. h4 {[%clk 0:02:55]}  f6 {[%clk 0:03:03]} 9. c4 {[%clk 0:02:51]}  Ba6 {[%clk 0:03:03]} 10. Rh3 {[%clk 0:02:50]}  Nb6 {[%clk 0:03:03]} 11. exf6 {[%clk 0:02:47]}  Qxe2+ {[%clk 0:02:47]} 12. Bxe2 {[%clk 0:02:48]}  gxf6 {[%clk 0:02:45]} 13. b3 {[%clk 0:02:44]}  O-O-O {[%clk 0:02:41]} 14. Bb2 {[%clk 0:02:42]}  Re8 {[%clk 0:02:38]} 15. Bxf6 {[%clk 0:02:22]}  Rg8 {[%clk 0:02:37]} 16. Rg3 {[%clk 0:02:20]}  Rxg3 {[%clk 0:02:32]} 17. fxg3 {[%clk 0:02:21]}  Nd5 {[%clk 0:02:06]} 18. Bg5 {[%clk 0:02:06]}  Bg7 {[%clk 0:02:00]} 0-1


[Site "https://www.chess.com"]

[Event "Titled Tuesday Blitz December 20 Late 2022"]
[White "Toncheva, Nadya"]
[Black "Mikhailov, Viacheslav"]
[WhiteFideId "2924056"]
[BlackFideId "4187369"]
[WhiteElo "2546"]
[BlackElo "2690"]
[Result "0-1"]
[Round "07"]
[TimeControl "180+1"]
[Date "2022.12.21"]
[WhiteClock "0:00:04"]
[BlackClock "0:00:06"]

1. e4 {[%clk 0:03:00]}  d6 {[%clk 0:02:57]} 2. d4 {[%clk 0:03:00]}  Nf6 {[%clk 0:02:58]} 3. Nc3 {[%clk 0:02:59]}  g6 {[%clk 0:02:58]} 4. Nf3 {[%clk 0:02:57]}  Bg7 {[%clk 0:02:58]} 5. Bc4 {[%clk 0:02:57]}  O-O {[%clk 0:02:59]} 6. h3 {[%clk 0:02:54]}  c6 {[%clk 0:02:58]} 7. Be3 {[%clk 0:02:55]}  b5 {[%clk 0:02:58]} 8. Bd3 {[%clk 0:02:53]}  Nbd7 {[%clk 0:02:55]} 9. Qd2 {[%clk 0:02:51]}  Nb6 {[%clk 0:02:54]} 10. b3 {[%clk 0:02:45]}  a5 {[%clk 0:02:49]} 11. O-O {[%clk 0:02:44]}  Bb7 {[%clk 0:02:46]} 12. Rfe1 {[%clk 0:02:43]}  a4 {[%clk 0:02:25]} 13. bxa4 {[%clk 0:02:41]}  Nxa4 {[%clk 0:02:24]} 14. Nxa4 {[%clk 0:02:22]}  Rxa4 {[%clk 0:02:25]} 15. c3 {[%clk 0:02:22]}  Qa5 {[%clk 0:02:21]} 16. Qb2 {[%clk 0:02:15]}  Ra8 {[%clk 0:02:18]} 17. Re2 {[%clk 0:02:10]}  Nd7 {[%clk 0:01:40]} 18. Bg5 {[%clk 0:02:06]}  e5 {[%clk 0:01:26]} 19. Be7 {[%clk 0:01:46]}  exd4 {[%clk 0:00:48]} 20. cxd4 {[%clk 0:01:43]}  Nc5 {[%clk 0:00:39]} 21. Bc2 {[%clk 0:01:22]}  Rb4 {[%clk 0:00:38]} 22. Qc1 {[%clk 0:01:09]}  Ne6 {[%clk 0:00:38]} 23. Bxd6 {[%clk 0:01:04]}  Nxd4 {[%clk 0:00:33]} 24. Nxd4 {[%clk 0:00:50]}  Rxd4 {[%clk 0:00:34]} 25. e5 {[%clk 0:00:44]}  Re8 {[%clk 0:00:29]} 26. Qe1 {[%clk 0:00:26]}  Qxe1+ {[%clk 0:00:16]} 27. Raxe1 {[%clk 0:00:27]}  Bf8 {[%clk 0:00:12]} 28. Bxf8 {[%clk 0:00:26]}  Kxf8 {[%clk 0:00:13]} 29. Bb3 {[%clk 0:00:25]}  c5 {[%clk 0:00:13]} 30. e6 {[%clk 0:00:23]}  fxe6 {[%clk 0:00:12]} 31. Bxe6 {[%clk 0:00:23]}  c4 {[%clk 0:00:11]} 32. Bxc4 {[%clk 0:00:17]}  Rxe2 {[%clk 0:00:12]} 33. Bxe2 {[%clk 0:00:17]}  Re4 {[%clk 0:00:07]} 34. f3 {[%clk 0:00:17]}  Re5 {[%clk 0:00:06]} 35. Kf2 {[%clk 0:00:17]}  b4 {[%clk 0:00:07]} 36. Rc1 {[%clk 0:00:16]}  Ra5 {[%clk 0:00:07]} 37. Rc2 {[%clk 0:00:14]}  Bd5 {[%clk 0:00:07]} 38. Rb2 {[%clk 0:00:12]}  Ra4 {[%clk 0:00:07]} 39. Bd1 {[%clk 0:00:10]}  Rxa2 {[%clk 0:00:08]} 40. Re2 {[%clk 0:00:02]}  b3 {[%clk 0:00:07]} 41. Bxb3 {[%clk 0:00:02]}  Bxb3 {[%clk 0:00:07]} 42. Rxa2 {[%clk 0:00:02]}  Bxa2 {[%clk 0:00:07]} 43. f4 {[%clk 0:00:03]}  Kg7 {[%clk 0:00:07]} 44. Kf3 {[%clk 0:00:03]}  Bd5+ {[%clk 0:00:07]} 45. Kf2 {[%clk 0:00:03]}  Kf6 {[%clk 0:00:07]} 46. g4 {[%clk 0:00:04]}  h6 {[%clk 0:00:07]} 47. Kg3 {[%clk 0:00:04]}  Bc4 {[%clk 0:00:05]} 48. Kf2 {[%clk 0:00:05]}  Bb3 {[%clk 0:00:04]} 49. Kg3 {[%clk 0:00:05]}  Bd1 {[%clk 0:00:04]} 50. h4 {[%clk 0:00:05]}  h5 {[%clk 0:00:04]} 51. gxh5 {[%clk 0:00:02]}  gxh5 {[%clk 0:00:05]} 52. Kf2 {[%clk 0:00:02]}  Kf5 {[%clk 0:00:06]} 53. Kg3 {[%clk 0:00:02]}  Bg4 {[%clk 0:00:06]} 54. Kf2 {[%clk 0:00:03]}  Kxf4 {[%clk 0:00:07]} 55. Kg2 {[%clk 0:00:04]}  Bf5 {[%clk 0:00:06]} 56. Kh2 {[%clk 0:00:04]}  Kg4 {[%clk 0:00:06]} 0-1


[Site "https://www.chess.com"]

[Event "Titled Tuesday Blitz December 20 Late 2022"]
[White "Urbina Perez, Juan Antonio"]
[Black "UnknownMagician"]
[WhiteFideId "2217368"]
[WhiteElo "2197"]
[BlackElo "2637"]
[Result "0-1"]
[Round "07"]
[TimeControl "180+1"]
[Date "2022.12.21"]
[WhiteClock "0:00:04"]
[BlackClock "0:00:41"]

1. d4 {[%clk 0:02:57]}  d5 {[%clk 0:02:59]} 2. Nf3 {[%clk 0:02:57]}  Nf6 {[%clk 0:02:59]} 3. c4 {[%clk 0:02:56]}  c6 {[%clk 0:02:59]} 4. Nbd2 {[%clk 0:02:55]}  g6 {[%clk 0:02:56]} 5. e3 {[%clk 0:02:53]}  Bg7 {[%clk 0:02:56]} 6. Be2 {[%clk 0:02:53]}  O-O {[%clk 0:02:57]} 7. O-O {[%clk 0:02:54]}  b6 {[%clk 0:02:54]} 8. cxd5 {[%clk 0:02:53]}  cxd5 {[%clk 0:02:55]} 9. Nb1 {[%clk 0:02:49]}  Ba6 {[%clk 0:02:53]} 10. Bd2 {[%clk 0:02:47]}  Bxe2 {[%clk 0:02:50]} 11. Qxe2 {[%clk 0:02:48]}  Ne4 {[%clk 0:02:49]} 12. Rc1 {[%clk 0:02:46]}  Qd6 {[%clk 0:02:43]} 13. Nc3 {[%clk 0:02:45]}  Nxd2 {[%clk 0:02:41]} 14. Qxd2 {[%clk 0:02:41]}  Nc6 {[%clk 0:02:38]} 15. Nb5 {[%clk 0:02:36]}  Qd7 {[%clk 0:02:37]} 16. Rc2 {[%clk 0:02:29]}  a6 {[%clk 0:02:33]} 17. Na3 {[%clk 0:02:26]}  Rfc8 {[%clk 0:02:29]} 18. Rac1 {[%clk 0:02:27]}  e6 {[%clk 0:02:27]} 19. g3 {[%clk 0:02:26]}  Ne7 {[%clk 0:02:20]} 20. Qb4 {[%clk 0:02:22]}  Rxc2 {[%clk 0:01:58]} 21. Rxc2 {[%clk 0:02:23]}  b5 {[%clk 0:01:49]} 22. Qa5 {[%clk 0:02:16]}  Nc6 {[%clk 0:01:41]} 23. Qb6 {[%clk 0:02:13]}  Nb4 {[%clk 0:01:42]} 24. Rc7 {[%clk 0:02:10]}  Qd8 {[%clk 0:01:42]} 25. Qb7 {[%clk 0:02:08]}  Rb8 {[%clk 0:01:40]} 26. Qa7 {[%clk 0:02:07]}  Ra8 {[%clk 0:01:38]} 27. Qb7 {[%clk 0:02:05]}  Rb8 {[%clk 0:01:38]} 28. Qa7 {[%clk 0:02:06]}  Qe8 {[%clk 0:01:23]} 29. Qc5 {[%clk 0:01:34]}  Bf8 {[%clk 0:01:20]} 30. Qa7 {[%clk 0:01:21]}  Bd6 {[%clk 0:01:19]} 31. Rb7 {[%clk 0:00:54]}  Rc8 {[%clk 0:01:09]} 32. Ng5 {[%clk 0:00:37]}  Ra8 {[%clk 0:01:07]} 33. Qb6 {[%clk 0:00:31]}  Be7 {[%clk 0:01:07]} 34. Nf3 {[%clk 0:00:20]}  Bf6 {[%clk 0:00:58]} 35. Qc7 {[%clk 0:00:15]}  Rc8 {[%clk 0:00:56]} 36. Qa5 {[%clk 0:00:13]}  Qf8 {[%clk 0:00:44]} 37. Kg2 {[%clk 0:00:04]}  Bd8 {[%clk 0:00:41]} 0-1


[Site "https://www.chess.com"]

[Event "Titled Tuesday Blitz December 20 Late 2022"]
[White "Van Foreest, Jorden"]
[Black "Makarian, Rudik"]
[WhiteFideId "1039784"]
[BlackFideId "44105681"]
[WhiteElo "2663"]
[BlackElo "2440"]
[Result "0-1"]
[Round "07"]
[TimeControl "180+1"]
[Date "2022.12.20"]
[WhiteClock "0:01:10"]
[BlackClock "0:01:40"]

1. e4 {[%clk 0:03:00]}  c5 {[%clk 0:02:58]} 2. Nf3 {[%clk 0:03:00]}  e6 {[%clk 0:02:59]} 3. d4 {[%clk 0:03:00]}  cxd4 {[%clk 0:02:59]} 4. Nxd4 {[%clk 0:03:01]}  Nf6 {[%clk 0:03:00]} 5. Nc3 {[%clk 0:03:01]}  Nc6 {[%clk 0:03:00]} 6. Be2 {[%clk 0:02:56]}  Be7 {[%clk 0:02:57]} 7. Be3 {[%clk 0:02:54]}  O-O {[%clk 0:02:56]} 8. f4 {[%clk 0:02:54]}  d6 {[%clk 0:02:53]} 9. g4 {[%clk 0:02:43]}  Nxd4 {[%clk 0:02:51]} 10. Qxd4 {[%clk 0:02:42]}  e5 {[%clk 0:02:49]} 11. Qd2 {[%clk 0:02:43]}  Nxg4 {[%clk 0:02:42]} 12. Bxg4 {[%clk 0:02:42]}  Bxg4 {[%clk 0:02:40]} 13. Rg1 {[%clk 0:02:42]}  exf4 {[%clk 0:02:32]} 14. Bxf4 {[%clk 0:02:38]}  Bh4+ {[%clk 0:02:31]} 15. Bg3 {[%clk 0:02:38]}  f5 {[%clk 0:02:26]} 16. Qf2 {[%clk 0:02:34]}  Bf6 {[%clk 0:02:21]} 17. h3 {[%clk 0:02:28]}  Bh5 {[%clk 0:02:11]} 18. exf5 {[%clk 0:01:56]}  Qa5 {[%clk 0:02:00]} 19. Kd2 {[%clk 0:01:52]}  Bxc3+ {[%clk 0:01:53]} 20. bxc3 {[%clk 0:01:50]}  Rxf5 {[%clk 0:01:54]} 21. Bf4 {[%clk 0:01:10]}  Rd5+ {[%clk 0:01:40]} 22. Ke1 {[%clk 0:01:10]}  Qxc3+ {[%clk 0:01:40]} 0-1


[Site "https://www.chess.com"]

[Event "Titled Tuesday Blitz December 20 Late 2022"]
[White "Yeritsyan, Hayk"]
[Black "Bach, Matthias"]
[WhiteFideId "13307320"]
[BlackFideId "4603168"]
[WhiteElo "2413"]
[BlackElo "2165"]
[Result "1-0"]
[Round "07"]
[TimeControl "180+1"]
[Date "2022.12.21"]
[WhiteClock "0:00:42"]
[BlackClock "0:01:05"]

1. d4 {[%clk 0:03:00]}  Nf6 {[%clk 0:02:59]} 2. Nf3 {[%clk 0:03:01]}  c5 {[%clk 0:02:59]} 3. e3 {[%clk 0:03:01]}  cxd4 {[%clk 0:02:58]} 4. exd4 {[%clk 0:03:02]}  d6 {[%clk 0:02:57]} 5. Be2 {[%clk 0:03:02]}  g6 {[%clk 0:02:57]} 6. h3 {[%clk 0:03:03]}  Bg7 {[%clk 0:02:58]} 7. c3 {[%clk 0:03:03]}  O-O {[%clk 0:02:58]} 8. Bf4 {[%clk 0:03:04]}  Nbd7 {[%clk 0:02:52]} 9. O-O {[%clk 0:03:04]}  a6 {[%clk 0:02:50]} 10. Nbd2 {[%clk 0:03:04]}  b5 {[%clk 0:02:50]} 11. Bh2 {[%clk 0:03:03]}  Bb7 {[%clk 0:02:50]} 12. a4 {[%clk 0:03:04]}  Qc7 {[%clk 0:02:47]} 13. axb5 {[%clk 0:03:03]}  axb5 {[%clk 0:02:47]} 14. Bxb5 {[%clk 0:03:03]}  Qb6 {[%clk 0:02:42]} 15. Be2 {[%clk 0:02:38]}  Rxa1 {[%clk 0:02:29]} 16. Qxa1 {[%clk 0:02:37]}  Ra8 {[%clk 0:02:30]} 17. Qc1 {[%clk 0:02:35]}  Nd5 {[%clk 0:02:27]} 18. Qc2 {[%clk 0:02:20]}  Ra2 {[%clk 0:02:23]} 19. Nc4 {[%clk 0:02:14]}  Qc6 {[%clk 0:02:03]} 20. Qb3 {[%clk 0:02:05]}  Ra7 {[%clk 0:02:01]} 21. Ne3 {[%clk 0:01:52]}  N7b6 {[%clk 0:01:51]} 22. Nxd5 {[%clk 0:01:37]}  Nxd5 {[%clk 0:01:45]} 23. Re1 {[%clk 0:01:36]}  e5 {[%clk 0:01:25]} 24. dxe5 {[%clk 0:01:29]}  dxe5 {[%clk 0:01:25]} 25. Bxe5 {[%clk 0:01:26]}  Ne3 {[%clk 0:01:16]} 26. Bxg7 {[%clk 0:01:18]}  Nxg2 {[%clk 0:01:16]} 27. Kxg2 {[%clk 0:01:07]}  Kxg7 {[%clk 0:01:14]} 28. Qb4 {[%clk 0:00:52]}  f6 {[%clk 0:01:08]} 29. Qe7+ {[%clk 0:00:50]}  Kh6 {[%clk 0:01:06]} 30. Qf8+ {[%clk 0:00:47]}  Kh5 {[%clk 0:01:05]} 31. Kg1 {[%clk 0:00:42]} 1-0


[Site "https://www.chess.com"]

[Event "Titled Tuesday Blitz December 20 Late 2022"]
[White "Zakhartsov, Vladimir"]
[Black "Shuvalova, Polina"]
[WhiteFideId "4145097"]
[BlackFideId "24171760"]
[WhiteElo "2535"]
[BlackElo "2361"]
[Result "1-0"]
[Round "07"]
[TimeControl "180+1"]
[Date "2022.12.20"]
[WhiteClock "0:01:30"]
[BlackClock "0:01:42"]

1. c4 {[%clk 0:03:00]}  e6 {[%clk 0:02:58]} 2. d4 {[%clk 0:02:57]}  Nf6 {[%clk 0:02:56]} 3. Nf3 {[%clk 0:02:57]}  d5 {[%clk 0:02:56]} 4. Nc3 {[%clk 0:02:57]}  c5 {[%clk 0:02:56]} 5. cxd5 {[%clk 0:02:55]}  Nxd5 {[%clk 0:02:57]} 6. e4 {[%clk 0:02:52]}  Nxc3 {[%clk 0:02:57]} 7. bxc3 {[%clk 0:02:53]}  cxd4 {[%clk 0:02:58]} 8. cxd4 {[%clk 0:02:54]}  Bb4+ {[%clk 0:02:58]} 9. Bd2 {[%clk 0:02:54]}  Bxd2+ {[%clk 0:02:59]} 10. Qxd2 {[%clk 0:02:55]}  O-O {[%clk 0:02:59]} 11. Bc4 {[%clk 0:02:55]}  Nd7 {[%clk 0:02:59]} 12. O-O {[%clk 0:02:54]}  b6 {[%clk 0:02:59]} 13. d5 {[%clk 0:02:46]}  Nf6 {[%clk 0:02:57]} 14. Rfe1 {[%clk 0:02:42]}  exd5 {[%clk 0:02:45]} 15. exd5 {[%clk 0:02:42]}  Bb7 {[%clk 0:02:45]} 16. Rad1 {[%clk 0:02:31]}  Qd6 {[%clk 0:02:30]} 17. Nd4 {[%clk 0:02:30]}  Rad8 {[%clk 0:02:26]} 18. Nf5 {[%clk 0:02:29]}  Qc5 {[%clk 0:02:24]} 19. Qg5 {[%clk 0:02:19]}  g6 {[%clk 0:01:59]} 20. Qxf6 {[%clk 0:02:18]}  gxf5 {[%clk 0:01:55]} 21. Re3 {[%clk 0:02:13]}  f4 {[%clk 0:01:55]} 22. Re5 {[%clk 0:02:09]}  h6 {[%clk 0:01:42]} 23. Qxh6 {[%clk 0:02:07]}  Rd6 {[%clk 0:01:40]} 24. Rg5+ {[%clk 0:02:05]}  Rg6 {[%clk 0:01:40]} 25. Rxg6+ {[%clk 0:02:04]}  fxg6 {[%clk 0:01:41]} 26. Qxg6+ {[%clk 0:02:05]}  Kh8 {[%clk 0:01:42]} 27. Bb3 {[%clk 0:01:30]} 1-0


[Site "https://www.chess.com"]

[Event "Titled Tuesday Blitz December 20 Late 2022"]
[White "monkins"]
[Black "Kalajzic, Ivan"]
[BlackFideId "14506378"]
[WhiteElo "2233"]
[BlackElo "2163"]
[Result "1-0"]
[Round "07"]
[TimeControl "180+1"]
[Date "2022.12.21"]
[WhiteClock "0:00:05"]
[BlackClock "0:00:17"]

1. Nf3 {[%clk 0:03:00]}  Nc6 {[%clk 0:02:59]} 2. d4 {[%clk 0:03:00]}  d6 {[%clk 0:02:59]} 3. g3 {[%clk 0:02:58]}  Bg4 {[%clk 0:02:58]} 4. Bg2 {[%clk 0:02:58]}  e5 {[%clk 0:02:59]} 5. dxe5 {[%clk 0:02:56]}  dxe5 {[%clk 0:02:59]} 6. O-O {[%clk 0:02:51]}  Nf6 {[%clk 0:02:59]} 7. h3 {[%clk 0:02:32]}  Bf5 {[%clk 0:02:57]} 8. c3 {[%clk 0:02:24]}  Bc5 {[%clk 0:02:49]} 9. Nbd2 {[%clk 0:02:07]}  Qd7 {[%clk 0:02:41]} 10. Nb3 {[%clk 0:02:06]}  Bb6 {[%clk 0:02:41]} 11. Qxd7+ {[%clk 0:01:57]}  Nxd7 {[%clk 0:02:37]} 12. g4 {[%clk 0:01:50]}  Be6 {[%clk 0:02:30]} 13. Ng5 {[%clk 0:01:32]}  Bxb3 {[%clk 0:02:29]} 14. axb3 {[%clk 0:01:31]}  h5 {[%clk 0:02:19]} 15. b4 {[%clk 0:01:29]}  hxg4 {[%clk 0:02:13]} 16. hxg4 {[%clk 0:01:26]}  Nd8 {[%clk 0:01:54]} 17. c4 {[%clk 0:01:15]}  c6 {[%clk 0:01:50]} 18. b5 {[%clk 0:00:59]}  f6 {[%clk 0:01:49]} 19. Ne4 {[%clk 0:00:44]}  Nf7 {[%clk 0:01:33]} 20. bxc6 {[%clk 0:00:40]}  bxc6 {[%clk 0:01:33]} 21. Rd1 {[%clk 0:00:35]}  Rc8 {[%clk 0:01:22]} 22. b4 {[%clk 0:00:21]}  Bd4 {[%clk 0:01:13]} 23. Ra6 {[%clk 0:00:17]}  Nb8 {[%clk 0:01:11]} 24. Ra4 {[%clk 0:00:14]}  Bb6 {[%clk 0:01:07]} 25. c5 {[%clk 0:00:13]}  Bc7 {[%clk 0:01:06]} 26. Rxa7 {[%clk 0:00:13]}  Nd8 {[%clk 0:00:56]} 27. Nd6+ {[%clk 0:00:10]}  Bxd6 {[%clk 0:00:55]} 28. cxd6 {[%clk 0:00:10]}  Nd7 {[%clk 0:00:54]} 29. Be3 {[%clk 0:00:06]}  Ne6 {[%clk 0:00:53]} 30. Rc1 {[%clk 0:00:05]}  Nd8 {[%clk 0:00:47]} 31. Rc7 {[%clk 0:00:04]}  Rb8 {[%clk 0:00:42]} 32. Bc5 {[%clk 0:00:04]}  Ne6 {[%clk 0:00:40]} 33. Bxc6 {[%clk 0:00:03]}  Nxc7 {[%clk 0:00:38]} 34. dxc7 {[%clk 0:00:02]}  Rc8 {[%clk 0:00:38]} 35. Bd6 {[%clk 0:00:01]}  Rh4 {[%clk 0:00:30]} 36. f3 {[%clk 0:00:01]}  e4 {[%clk 0:00:30]} 37. b5 {[%clk 0:00:01]}  exf3 {[%clk 0:00:30]} 38. exf3 {[%clk 0:00:01]}  f5 {[%clk 0:00:29]} 39. Re1+ {[%clk 0:00:02]}  Kf7 {[%clk 0:00:28]} 40. Bxd7 {[%clk 0:00:03]}  Rxc7 {[%clk 0:00:24]} 41. Bxc7 {[%clk 0:00:03]}  fxg4 {[%clk 0:00:24]} 42. fxg4 {[%clk 0:00:03]}  Rh3 {[%clk 0:00:24]} 43. b6 {[%clk 0:00:03]}  Rb3 {[%clk 0:00:22]} 44. Kf2 {[%clk 0:00:03]}  Rb2+ {[%clk 0:00:21]} 45. Re2 {[%clk 0:00:03]}  Rb3 {[%clk 0:00:19]} 46. Bc6 {[%clk 0:00:03]}  Kf6 {[%clk 0:00:19]} 47. Bd8+ {[%clk 0:00:03]}  Kg6 {[%clk 0:00:19]} 48. b7 {[%clk 0:00:02]}  Kh7 {[%clk 0:00:17]} 49. Bc7 {[%clk 0:00:02]}  g5 {[%clk 0:00:16]} 50. b8=Q {[%clk 0:00:03]}  Rxb8 {[%clk 0:00:15]} 51. Bxb8 {[%clk 0:00:03]}  Kg7 {[%clk 0:00:16]} 52. Kf3 {[%clk 0:00:04]}  Kf6 {[%clk 0:00:17]} 53. Bd5 {[%clk 0:00:04]}  Kg6 {[%clk 0:00:16]} 54. Bc4 {[%clk 0:00:05]}  Kf6 {[%clk 0:00:17]} 55. Ba7 {[%clk 0:00:05]} 1-0


[Site "https://www.chess.com"]

[Event "Titled Tuesday Blitz December 20 Late 2022"]
[White "reevecanada"]
[Black "benny_aizenberg"]
[WhiteElo "2325"]
[BlackElo "2416"]
[Result "1-0"]
[Round "07"]
[TimeControl "180+1"]
[Date "2022.12.21"]
[WhiteClock "0:01:57"]
[BlackClock "0:01:29"]

1. e4 {[%clk 0:02:52]}  c5 {[%clk 0:02:59]} 2. Nf3 {[%clk 0:02:51]}  d6 {[%clk 0:02:58]} 3. Bb5+ {[%clk 0:02:49]}  Nd7 {[%clk 0:02:57]} 4. O-O {[%clk 0:02:47]}  a6 {[%clk 0:02:56]} 5. Bxd7+ {[%clk 0:02:48]}  Bxd7 {[%clk 0:02:56]} 6. Re1 {[%clk 0:02:48]}  Nf6 {[%clk 0:02:55]} 7. d4 {[%clk 0:02:49]}  cxd4 {[%clk 0:02:55]} 8. Nxd4 {[%clk 0:02:50]}  e6 {[%clk 0:02:54]} 9. Nc3 {[%clk 0:02:49]}  Be7 {[%clk 0:02:54]} 10. Be3 {[%clk 0:02:49]}  O-O {[%clk 0:02:54]} 11. f3 {[%clk 0:02:49]}  b5 {[%clk 0:02:53]} 12. Qd2 {[%clk 0:02:49]}  Qc7 {[%clk 0:02:53]} 13. Rad1 {[%clk 0:02:47]}  Rfc8 {[%clk 0:02:47]} 14. Bg5 {[%clk 0:02:46]}  Rab8 {[%clk 0:02:46]} 15. Nb3 {[%clk 0:02:45]}  b4 {[%clk 0:02:43]} 16. Ne2 {[%clk 0:02:44]}  Qxc2 {[%clk 0:02:42]} 17. e5 {[%clk 0:02:44]}  Nd5 {[%clk 0:02:30]} 18. Bxe7 {[%clk 0:02:42]}  Qxd2 {[%clk 0:02:28]} 19. Rxd2 {[%clk 0:02:41]}  Nxe7 {[%clk 0:02:28]} 20. Rxd6 {[%clk 0:02:39]}  Bb5 {[%clk 0:02:25]} 21. Ned4 {[%clk 0:02:38]}  Bc4 {[%clk 0:02:24]} 22. Rd1 {[%clk 0:02:35]}  Kf8 {[%clk 0:02:20]} 23. Na5 {[%clk 0:02:32]}  Bxa2 {[%clk 0:02:19]} 24. b3 {[%clk 0:02:28]}  Rb5 {[%clk 0:02:15]} 25. Nxb5 {[%clk 0:02:18]}  Nd5 {[%clk 0:02:08]} 26. Nd4 {[%clk 0:02:16]}  Rc5 {[%clk 0:02:03]} 27. Nac6 {[%clk 0:02:14]}  g6 {[%clk 0:01:51]} 28. Ra1 {[%clk 0:02:13]}  Nc3 {[%clk 0:01:40]} 29. Nxb4 {[%clk 0:02:09]}  Bb1 {[%clk 0:01:39]} 30. Rc6 {[%clk 0:02:05]}  Rxc6 {[%clk 0:01:30]} 31. Nbxc6 {[%clk 0:02:01]}  Bd3 {[%clk 0:01:29]} 32. Nb4 {[%clk 0:01:57]} 1-0


[Site "https://www.chess.com"]